Cogmind - Beta 15 @@@ ROGUE MODE // 2025.07.07 @ 01:19:26 Player: Moonlit Result: Destroyed by G-47 Trooper with Particle Gun Performance ------------- Evolutions (1) 500 Regions Visited (5) 1000 Robots Destroyed (65) 325 Value Destroyed (1024) 1024 Prototype IDs (24) 480 Alien Tech Used (0) 0 Bonus (300) 300 TOTAL SCORE: 3629 Bonus ------- Aligned with FarCom 300 Cogmind --------- Core Integrity 0/400 Matter 300/300 Energy 100/100 System Corruption 0% Temperature Cool (9) Movement Core (350) Ox6 Location -8/Mines Parts ------- > --- POWER (1) -------- (None) > --- PROPULSION (3) --- (None) > --- UTILITY (3) ------ Improved Heat Sink Large Storage Unit 0b10 Alert Chip > --- WEAPON (2) ------- (None) > --- INVENTORY (15) --- Light Nuclear Core Improved Aluminum Leg Humpback Weapon Shielding Hacking Suite Peak State ------------ > --- POWER ------------ Heavy Ion Engine > --- PROPULSION ------- Light Treads Light Treads Light Treads > --- UTILITY ---------- Improved Heat Sink Large Storage Unit 0b10 Alert Chip > --- WEAPON ----------- Light EM Pulse Cannon Light EM Pulse Cannon > --- INVENTORY -------- Light Nuclear Core Light Treads Light Treads Improved Aluminum Leg Humpback Weapon Shielding Hacking Suite [Rating: 21] Favorites ----------- Power Heavy Ion Engine Engine Heavy Ion Engine Power Core Light Nuclear Core Propulsion Light Treads Treads Light Treads Leg Aluminum Leg Utility Improved Heat Sink Device Improved Heat Sink Storage Large Storage Unit Processor 0b10 Alert Chip Protection Weapon Shielding Weapon Light EM Pulse Cannon Energy Gun Particle Gun Energy Cannon Light EM Pulse Cannon Ballistic Gun Assault Rifle Build | -11 -10 -9 -9 -9 -8 ------- Run | Yrd Mat Mat Min Exi Min Slots Evolved 2 | . . 2 . . . Power . | . . . . . . Propulsion 1 | . . 1 . . . Utility 1 | . . 1 . . . Weapon . | . . . . . . Parts Attached 22 | 7 6 6 . 1 2 Power 3 | 1 1 1 . . . Engine 2 | 1 . 1 . . . Core 1 | . 1 . . . . Reactor . | . . . . . . Propulsion 8 | 2 3 1 . . 2 Treads 6 | 2 1 1 . . 2 Leg 2 | . 2 . . . . Wheel . | . . . . . . Hover . | . . . . . . Flight . | . . . . . . Utility 6 | 2 1 2 . 1 . Device 1 | . 1 . . . . Storage 3 | 2 . 1 . . . Processor 1 | . . . . 1 . Hackware . | . . . . . . Protection 1 | . . 1 . . . Artifact . | . . . . . . Weapon 5 | 2 1 2 . . . Energy Gun 1 | . 1 . . . . Energy Cannon 2 | . . 2 . . . Ballistic Gun 2 | 2 . . . . . Ballistic Cannon . | . . . . . . Launcher . | . . . . . . Special Weapon . | . . . . . . Impact Weapon . | . . . . . . Slashing Weapon . | . . . . . . Piercing Weapon . | . . . . . . Special Melee Weapon . | . . . . . . Unidentified Prototypes 2 | . . 1 . 1 . Parts Lost 10 | . 2 . . . 8 Power 1 | . . . . . 1 Propulsion 6 | . 1 . . . 5 Utility . | . . . . . . Weapon 3 | . 1 . . . 2 Highest Loss Streak 4 | . 1 . . . 4 To Critical Strikes . | . . . . . . Average Backups 4 | 1 3 4 5 6 5 Power . | . . . 1 1 1 Propulsion 2 | 1 1 2 3 3 1 Utility 1 | . 1 1 1 2 3 Weapon . | . . . . . . Tool/Special . | . . . . . . Unused Backups 13 | . 5 2 . 3 3 Power 2 | . . 1 . 1 . Propulsion 6 | . 5 . . . 1 Utility 5 | . . 1 . 2 2 Weapon . | . . . . . . Tool/Special . | . . . . . . Average Slot Usage (%) 95 | . 98 98 100 100 66 Engine 9 | . 7 9 11 11 9 Core 1 | . 6 1 . . . Treads 29 | . 22 33 33 33 22 Device 10 | . 7 11 11 11 11 Storage 12 | . 19 11 11 11 11 Processor 2 | . . . . 2 11 Protection 6 | . . 10 11 8 . Energy Gun 2 | . 8 4 . . . Energy Cannon 14 | . . 15 22 22 1 Ballistic Gun 3 | . 19 . . . . Peak Build Rating 21 | 7 13 16 16 21 21 Average Rating 14 | 5 9 15 16 17 15 On Entrance 11 | . 7 11 16 16 21 Naked Turns . | . . . . . . Heaviest Build 38 | 18 18 38 38 38 29 Greatest Support 60 | 40 40 60 60 60 60 Greatest Overweight (x) 9 | 4 . . . . 9 Average Overweight (x) . | . . . . . . Largest Inventory Capacity 15 | 8 8 15 15 15 15 Average Capacity 12 | 7 8 9 15 15 15 Most Carried 9 | 3 8 7 5 9 8 Average Carried 5 | 1 3 4 5 6 6 Final Capacity 15 | 8 8 15 15 15 15 Final Carried 8 | 2 4 5 5 8 6 Class Distribution -------------------- 97% | Mutant Dominant Class ---------------- Mutant | -10/Materials Mutant | -9/Materials Mutant | -9/Mines Mutant | -9/Exiles Mutant | -8/Mines Resources | -11 -10 -9 -9 -9 -8 ----------- Run | Yrd Mat Mat Min Exi Min Matter Collected 659 | 330 269 60 . . . Remotely . | . . . . . . Salvage Created 2312 | 197 943 1116 56 . . Parts 128 | 16 42 67 3 . . Haulers Intercepted 2 | . 1 1 . . . Recyclers Shooed 4 | . 2 2 . . . Parts Field Recycled . | . . . . . . Retrieved Matter . | . . . . . . Parts Self-Destructed . | . . . . . . Prevented . | . . . . . . Kills | -11 -10 -9 -9 -9 -8 ------- Run | Yrd Mat Mat Min Exi Min Combat Hostiles Destroyed 19 | . 11 8 . . . Guns 11 | . 11 . . . . Cannons 7 | . . 7 . . . Classes Destroyed 10 | 3 5 2 . . . Worker 15 | 1 3 8 3 . . Builder 6 | . 2 4 . . . Tunneler 8 | 5 1 2 . . . Hauler 2 | . 1 1 . . . Recycler 7 | 1 3 3 . . . Mechanic 1 | . . 1 . . . Operator 3 | . 1 2 . . . Watcher 4 | . 1 3 . . . Grunt 15 | . 11 4 . . . Sentry 4 | . . 4 . . . Best Kill Streak 11 | 5 5 11 2 . . Combat Bots Only 3 | . 3 3 . . . Max Kills in Single Turn 2 | 1 1 2 1 . . Gunslinging . | . . . . . . Exploded . | . . . . . . Melee . | . . . . . . Uniques/NPCs Destroyed . | . . . . . . Combat | -11 -10 -9 -9 -9 -8 -------- Run | Yrd Mat Mat Min Exi Min Hostile Shots Fired 181 | . 48 41 . . 92 Missed 49 | . 11 18 . . 20 Hits 132 | . 37 23 . . 72 Melee 5 | . . . . . 5 Projectile 127 | . 37 23 . . 67 Critical Strikes 6 | . 1 2 . . 3 Actively Blocked 1 | . . 1 . . . Damage Taken 2049 | . 475 337 34 . 1203 Core 466 | . 66 13 . . 387 Absorbed by Shields . | . . . . . . Redirected to Shielding 39 | . . 34 5 . . Core Remaining (%) 86 | 100 73 . . . . Volleys Fired 137 | 15 56 58 4 . 4 Largest 2 | 2 2 2 2 . 2 Hottest 121 | 40 85 121 112 . 112 Shots Fired 270 | 30 112 113 8 . 7 Gun 160 | 30 112 18 . . . Cannon 110 | . . 95 8 . 7 Launcher . | . . . . . . Special . | . . . . . . Kinetic 112 | 30 82 . . . . Thermal 48 | . 30 18 . . . Explosive . | . . . . . . Electromagnetic 110 | . . 95 8 . 7 Robot Hit Streak 12 | 12 11 7 4 . 11 Robot Miss Streak 3 | 2 3 3 2 . . Penetration Max . | . . . . . . Secondary Targets 1 | . 1 . . . . Max Gunslinging Chain 1 | . 1 . . . . Shots Hit Robots 179 | 18 77 72 5 . 7 Core Hits 87 | 9 38 34 3 . 3 Critical Kills 1 | . 1 . . . . Critical Parts Destroyed . | . . . . . . Critical Strikes 1 | . 1 . . . . Destroy 1 | . 1 . . . . Melee Attacks . | . . . . . . Impact . | . . . . . . Slashing . | . . . . . . Piercing . | . . . . . . Sneak Attacks . | . . . . . . Combat Hostiles . | . . . . . . Follow-up Attacks . | . . . . . . Damage Inflicted 3159 | 209 941 1611 158 . 240 Guns 1346 | 209 941 196 . . . Cannons 1594 | . . 1334 116 . 144 Explosions 219 | . . 81 42 . 96 Melee . | . . . . . . Ramming . | . . . . . . Kinetic 873 | 209 664 . . . . Thermal 692 | . 277 277 42 . 96 Explosive . | . . . . . . Electromagnetic 1594 | . . 1334 116 . 144 Impact . | . . . . . . Slashing . | . . . . . . Piercing . | . . . . . . Highest Corruption . | . . . . . . Average Corruption . | . . . . . . Corruption Purged . | . . . . . . Corruption Blocked . | . . . . . . Overload Shots . | . . . . . . Overflow Damage 49 | . . 32 . . 17 Projectiles 32 | . . 32 . . . Explosions 17 | . . . . . 17 Melee . | . . . . . . Knockbacks . | . . . . . . Impact . | . . . . . . Kinetic . | . . . . . . Secondary . | . . . . . . Self-Inflicted Damage 80 | . . . 35 . 45 Shots 2 | . . . 1 . 1 Rammed . | . . . . . . Targets Rammed . | . . . . . . Kicked . | . . . . . . Crushed . | . . . . . . Highest Temperature 90 | . 37 90 15 . 68 Average Temperature 16 | . 12 16 5 . 31 Received Heat Transfer 1068 | . 279 150 . . 639 Siege Activations . | . . . . . . Martial Activations . | . . . . . . Shielding Activations . | . . . . . . Robots Disrupted . | . . . . . . Combat Hostiles . | . . . . . . Robots Corrupted 2 | . . 2 . . . Combat Hostiles 1 | . . 1 . . . Parts Fried 13 | . . 11 2 . . Impact Corruptions . | . . . . . . Robots Melted . | . . . . . . Combat Hostiles . | . . . . . . Parts Melted 3 | . 1 2 . . . Heat Transferred 1347 | . 666 531 . . 150 Parts Sabotaged . | . . . . . . Parts Stolen . | . . . . . . Parts Stripped . | . . . . . . Power Chain Reactions 4 | . . 2 1 . 1 Alert | -11 -10 -9 -9 -9 -8 ------- Run | Yrd Mat Mat Min Exi Min Maximum Alert Level 1 | . . 1 . . . Low Security (%) 93 | 100 100 81 100 . 100 Level 1 6 | . . 18 . . . Level 2 . | . . . . . . Level 3 . | . . . . . . Level 4 . | . . . . . . Level 5 . | . . . . . . High Security . | . . . . . . Max Security . | . . . . . . Peak Influence 231 | 20 165 231 91 . 30 Initial 86 | . . 60 86 . . Average 72 | 3 97 102 60 . 5 Influence Increases 892 | 35 359 406 20 . 72 Destroy 0b10 Robot/C 380 | . 220 160 . . . Destroy 0b10 Robot/NC 230 | 35 60 120 15 . . Destroy Leader 122 | . 44 78 . . . Successful Hack 5 | . 5 . . . . Disable Machine 12 | . . . . . 12 Destroy Structure 8 | . . 3 5 . . Lose Combat Pursuer 135 | . 30 45 . . 60 Influence Decreases 892 | 35 215 328 226 16 72 Entered New Map 236 | . . 84 136 16 . Time Decay 604 | 35 195 244 90 . 40 Lost Part 52 | . 20 . . . 32 Squads Dispatched 4 | . 2 2 . . . Investigation 1 | . 1 . . . . Extermination . | . . . . . . Reinforcement 3 | . 1 2 . . . Assault . | . . . . . . Garrison . | . . . . . . Intercept . | . . . . . . Searches Triggered . | . . . . . . Construction Impeded . | . . . . . . Haulers Reinforced . | . . . . . . Active Scanning Responses . | . . . . . . Cargo Convoy Interrupts . | . . . . . . Stealth | -11 -10 -9 -9 -9 -8 --------- Run | Yrd Mat Mat Min Exi Min Distress Signals 2 | . . 2 . . . Communications Jammed . | . . . . . . Distress Signals . | . . . . . . Times Spotted 41 | . 17 18 . . 6 Peak Tracking Total 5 | . 5 4 . . 3 Tactical Retreats 6 | . 1 2 . . 3 Traps | -11 -10 -9 -9 -9 -8 ------- Run | Yrd Mat Mat Min Exi Min Traps Triggered . | . . . . . . Indirectly . | . . . . . . Trap Hack Attempts . | . . . . . . Triggered . | . . . . . . Disarmed . | . . . . . . Reprogrammed . | . . . . . . Reused . | . . . . . . Traps Extracted . | . . . . . . Installed . | . . . . . . Triggered . | . . . . . . Machines | -11 -10 -9 -9 -9 -8 ---------- Run | Yrd Mat Mat Min Exi Min Machines Disabled 1 | . . . . . 1 Max in Single Turn 1 | . . . . . 1 Machines Repaired . | . . . . . . Machines Dismantled . | . . . . . . Machines Sabotaged . | . . . . . . Overloaded Fab Kills . | . . . . . . Hacking | -11 -10 -9 -9 -9 -8 --------- Run | Yrd Mat Mat Min Exi Min Machines Accessed 8 | . 2 3 . 3 . Terminals 4 | . 2 2 . . . Fabricators . | . . . . . . Repair Stations . | . . . . . . Recycling Units 1 | . . 1 . . . Scanalyzers . | . . . . . . Garrison Access . | . . . . . . Total Hacks 50 | . 9 8 . 33 . Successful 43 | . 5 5 . 33 . Failed 7 | . 4 3 . . . Catastrophic 1 | . 1 . . . . Database Lockouts . | . . . . . . Manual 4 | . . . . 4 . Terminals 16 | . 9 7 . . . Fabricators . | . . . . . . Repair Stations . | . . . . . . Recycling Units 1 | . . 1 . . . Scanalyzers . | . . . . . . Garrison Access . | . . . . . . Terminal Hacks 42 | . 5 4 . 33 . Record 38 | . 2 4 . 32 . Recycling Unit Index 1 | . 1 . . . . Alert Level 1 | . 1 . . . . Zone Layout 1 | . 1 . . . . Proto ID Catalog 1 | . . . . 1 . Fabricator Hacks . | . . . . . . Repair Station Hacks . | . . . . . . Recycling Unit Hacks 1 | . . 1 . . . Report Inventory 1 | . . 1 . . . Scanalyzer . | . . . . . . Garrison Access Hacks . | . . . . . . Unauthorized Hacks . | . . . . . . Terminals . | . . . . . . Fabricators . | . . . . . . Repair Stations . | . . . . . . Recycling Units . | . . . . . . Scanalyzers . | . . . . . . Garrison Access . | . . . . . . Data Cores Recovered 1 | . 1 . . . . Used . | . . . . . . Hacking Detections 3 | . 2 1 . . . Full Trace Events 2 | . 2 . . . . Feedback Events . | . . . . . . Feedback Blocked . | . . . . . . Robot Schematics Acquired . | . . . . . . Robots Built . | . . . . . . Authchips . | . . . . . . Time . | . . . . . . Total Robot Build Rating . | . . . . . . Part Schematics Acquired . | . . . . . . Parts Built . | . . . . . . Authchips . | . . . . . . Time . | . . . . . . Total Part Build Rating . | . . . . . . Parts Repaired . | . . . . . . Time . | . . . . . . Parts Recycled . | . . . . . . Recycled Matter . | . . . . . . Retrieved Matter . | . . . . . . Retrieved Components . | . . . . . . Parts Scanalyzed . | . . . . . . Part Schematics Acquired . | . . . . . . Parts Damaged . | . . . . . . Bothacking | -11 -10 -9 -9 -9 -8 ------------ Run | Yrd Mat Mat Min Exi Min Used RIF Installer . | . . . . . . Robots Hacked . | . . . . . . Non-combat . | . . . . . . Combat . | . . . . . . Robot Hacks Applied . | . . . . . . Relay Couplers Released . | . . . . . . Fabnet Peak Effective % . | . . . . . . Robots Rewired . | . . . . . . Allies Hacked . | . . . . . . Hacks Repelled . | . . . . . . Allies | -11 -10 -9 -9 -9 -8 -------- Run | Yrd Mat Mat Min Exi Min Total Allies . | . . . . . . Largest Group . | . . . . . . Highest-Rated Group . | . . . . . . Highest-Rated Ally . | . . . . . . Total Orders . | . . . . . . Ally Attacks . | . . . . . . Total Damage . | . . . . . . Kills . | . . . . . . Allies Corrupted . | . . . . . . Allies Melted . | . . . . . . Intel | -11 -10 -9 -9 -9 -8 ------- Run | Yrd Mat Mat Min Exi Min Active Infowar (turns) . | . . . . . . Robot Analysis Total . | . . . . . . Derelict Logs Recovered . | . . . . . . Drone Launches . | . . . . . . Drone Recoveries . | . . . . . . Exploration | -11 -10 -9 -9 -9 -8 ------------- Run | Yrd Mat Mat Min Exi Min Turns Passed 2678 | 149 496 548 182 1052 251 Spaces Moved 1330 | 59 194 189 107 648 133 Core 31 | 20 . . . . 11 Treads 1258 | 39 153 189 107 648 122 Legs 41 | . 41 . . . . Wheels . | . . . . . . Hover . | . . . . . . Flight . | . . . . . . Fastest Speed 50 | 50 120 160 160 160 160 Average Speed 160 | 156 151 160 160 160 178 Slowest Speed 500 | 250 160 160 160 160 500 Overloaded Moves . | . . . . . . Propulsion Burnouts . | . . . . . . Robots Hopped . | . . . . . . Potential Cave-ins . | . . . . . . Cave-ins Triggered . | . . . . . . Exploration Rate (%) 30 | 4 36 27 20 73 25 Regions Visited 5 Branch Regions 3 Pre-discovered Areas 1 | . . . . 1 . Known Exits Taken . | . . . . . . Unknown Exits Taken 5 | 1 1 1 1 1 . Scrap Searched . | . . . . . . Spaces Dug . | . . . . . . Terrain Destroyed 8 | . . 3 5 . . Melee . | . . . . . . Projectile . | . . . . . . AOE 8 | . . 3 5 . . Terrain Rammed . | . . . . . . Walls Destroyed . | . . . . . . Machines Disabled . | . . . . . . Actions | -11 -10 -9 -9 -9 -8 --------- Run | Yrd Mat Mat Min Exi Min Total 1617 | 89 292 322 110 665 139 Wait 76 | . 11 58 . 7 . Move 1325 | 58 193 188 106 647 133 Hop . | . . . . . . Pick Up 35 | 9 13 8 . 5 . Fast Attach . | . . . . . . Attach 16 | 7 3 3 . 1 2 Detach 2 | . 1 . . 1 . Swap 8 | . 5 3 . . . Drop 17 | . 10 4 . 3 . Fire 137 | 15 56 58 4 . 4 Melee . | . . . . . . Ram . | . . . . . . Kick . | . . . . . . Crush . | . . . . . . Escape Stasis . | . . . . . . Rewire 1 | . . . . 1 . Trap . | . . . . . . Miscellaneous . | . . . . . . Route ------- -11/Scrapyard -10/Materials (discovered 2 exits: *Mat / [*Min]) -9/Materials -9/Mines -9/Exiles (discovered 2 exits: [*Min x2]) -8/Mines History --------- Turn | Location | Event 5 | -11/Scrapyard | Discovered new exit (range 16) 150 | -11/Scrapyard | Entered Materials 313 | -10/Materials | Build established: Mutant 538 | -10/Materials | Discovered new exit (range 14) 641 | -10/Materials | Discovered new exit (range 3) 646 | -10/Materials | Entered another Materials area 646 | -9/Materials | Evolved 2 slots: Propulsion x1, Utility x1 1050 | -9/Materials | Discovered new exit (range 16) 1194 | -9/Materials | Entered Mines 1200 | -9/Mines | Assembled infested the area 1277 | -9/Mines | Met 8R-AWN 1366 | -9/Mines | Discovered new exit (range 5) 1376 | -9/Mines | Entered Exiles 1418 | -9/Exiles | Discovered new exit (range 14) 1460 | -9/Exiles | Welcomed by 8R-AWN 1490 | -9/Exiles | Met EX-HEX 1620 | -9/Exiles | Met EX-DEC 1657 | -9/Exiles | Learned location of Zion (-7) 1731 | -9/Exiles | Discovered new exit (range 14) 1844 | -9/Exiles | Met EX-BIN 1889 | -9/Exiles | Aligned with FarCom system 1891 | -9/Exiles | Given EX-Vault access code 2137 | -9/Exiles | Opened EX-Vault 2147 | -9/Exiles | Found Prototype Processor 2152 | -9/Exiles | Identified 0b10 Alert Chip 2221 | -9/Exiles | Warned to stay clear of 0b10 Research branches 2428 | -9/Exiles | Left Exiles lab with 0b10 Alert Chip 2428 | -9/Exiles | Entered Mines 2469 | -8/Mines | Lost 4 parts (2n2w) 2640 | -8/Mines | Core integrity fell below 50% 2667 | -8/Mines | Core integrity fell below 20% 2674 | -8/Mines | Lost 3 parts (1p2n) 2679 | -8/Mines | Destroyed by G-47 Trooper with Particle Gun Last Messages --------------- GOAL=ESCAPE Receiving FarCom transmissions... C-30 ARC bursts open, deploying its payload. B-36 Bruiser unfolds itself. G-47 Trooper unfolds itself. Lgt. Treads destroyed. Chain reaction triggered in Rnf. Ion Engine. Core Extractor disabled. Lgt. Treads destroyed. Destroyed Lgt. Treads. Lgt. EM Pulse Cannon destroyed. K-01 Serf cleans the Plasma Injector. K-01 Serf collects debris. Lgt. Treads destroyed. Seismic Survey Station disabled. Critical hit (Burn: +37). Lgt. Treads destroyed. Critical hit (Burn: +37). Core Extractor disabled. Hvy. Ion Engine destroyed. Map ----- +----------------------------------------------------+ | # " #???# #??????????????????????????????????? | | # #???# #??????????????????????????????????? | | ## #???# ??????????????????????????????????? | | ?# #???# #??????????????????????????????????? | | ?# ##### #??????????????????????????????????? | | ?# #??????????????????????????????????? | | ?# ##### #??????????????????????????????????? | | ?# ###### #??????????????????????????????????? | | ?## ##?# #??????????????????????????????????? | | ??## #??# ## #??????????????????????????????????? | | ???# #??# ## #??????????????????????????????????? | | ???# #### ## #??????????????????????????????????? | | ???# ## #??????????????????????????????????? | | ???######### #??????????????????????????????????? | | ???????????# #??????????????????????????????????? | | ???????????# #??????????????????????????????????? | | ???????????# #??????????????????????????????????? | | ???????????# #???#####??????????????????????????? | | ???????????# #?### ##?????????????????s???????? | | ???????????# ### ###???????????????s???????? | | ?########### ## ##?########?????s???????? | | ?# b #?# #??????s??????? | | ?# #?# #?????????????? | | ?# ####### """ ##?# #?????????????? | | ## ######## """ ##### """ #?????????????? | | ######## """ @ g """ #?????????????? | | #??????# g " " #?????????????? | | "" #??????# ###### #?????????????? | | " #?????# #????########?????????????? | | " #?????# ##?????????????????????????? | | #?????## ##??????????????????????????? | | #??????#####???????????????????????????? | | % #??????????????????????????????????????? | | ###########??????????????????????????????????????? | | ?????????????????????????????????????????????????? | | ?????????????????????????????????????????????????? | | ?????????????????????????????????????????????????? | | ?????????????????????????????????????????????????? | | | | | | | | | | | | | | | | | | | | | | | | | +----------------------------------------------------+ Best States ------------- Heat Dissipation 42 Energy Generation 14 Energy Capacity 280 Matter Stores 300 Matter Capacity 300 Sight Range 16 Terrain Scan Density 10 Weapon Shielding 33 Evasion (%) 55 Recoil Reduction 3 Item Schematics ----------------- None Robot Schematics ------------------ None Fabricated ------------ Nothing Repaired ---------- Nothing Alien Tech Used ----------------- None Achievements -------------- Librarian Power Corrupts Tourist Challenges ------------ None Game ------ Seed MakeshiftDeflectorDrive Manual? 0 Play Time 00:45:49 Cumulative 2.4 hours Start 2025.07.06 @ 07:10:37 End 2025.07.07 @ 01:19:26 Sessions 3 Manual Loads 0 Difficulty Rogue Special Mode None Game No. 4 Rogue 4 Adventurer 0 Explorer 0 Win Type - Total 0 Types 0/0/0/0/0/0/0/0/0/0 Lore% 4 Gallery% 3 Achievement% 6 Wizard Run 0 Options --------- Layout 0 ASCII 0 Keyboard 0 Movement Mouse Keybinds 0 Fullscreen 2 Font 24/Smallcaps Map View 76x50 Zoom Use 15% Tactical HUD 0 Map Filters NONE Filters NONE Steam 1 RUN: 5401e5e6-5348-406f-bdb0-5399a273931d